Cogmind - Beta 10.2 @@@ ROGUE MODE // 2021.05.18 @ 11:27:40 Player: silmarilion6 Result: Destroyed by G-47 Trooper with Particle Gun Performance ------------- Evolutions (3) 1500 Regions Visited (5) 1000 Robots Destroyed (46) 230 Value Destroyed (1322) 1322 Prototype IDs (5) 100 Alien Tech Used (0) 0 Bonus (58) 58 TOTAL SCORE: 4210 Bonus ------- Follower Combat Kills 58 Cogmind --------- Core Integrity 0/700 Matter 299/300 Energy 100/100 System Corruption 2% Temperature Cool (9) Movement Core (700) Ox13 Location -7/Factory Parts ------- > --- POWER (2) -------- (None) > --- PROPULSION (4) --- (None) > --- UTILITY (5) ------ Medium Storage Unit High-capacity Storage Unit > --- WEAPON (2) ------- (None) > --- INVENTORY (16) --- Cooled Ion Engine Light Deuterium Engine Light Nuclear Core Enhanced Nuclear Core VTOL Module Improved Heat Sink Improved Sensor Array Improved Targeting Computer Hardlight Generator Pulse Rifle Electrolaser Heavy Particle Gun Heavy Particle Gun Advanced Beam Rifle EM Pulse Cannon Autogun Peak State ------------ > --- POWER ------------ Light Nuclear Core Enhanced Nuclear Core > --- PROPULSION ------- VTOL Module VTOL Module VTOL Module > --- UTILITY ---------- Improved Heat Sink Medium Storage Unit High-capacity Storage Unit Transmission Jammer Improved Medium Armor Plating > --- WEAPON ----------- Shock Rifle Enhanced Autogun > --- INVENTORY -------- Cooled Ion Engine Light Deuterium Engine Light Nuclear Core Improved Heat Sink Improved Sensor Array Improved Targeting Computer Hardlight Generator Pulse Rifle Electrolaser Heavy Particle Gun Heavy Particle Gun Heavy Particle Gun Advanced Beam Rifle EM Pulse Cannon Autogun [Rating: 37] Favorites ----------- Power Cooled Ion Engine Engine Cooled Ion Engine Power Core Light Nuclear Core Propulsion Improved Treads Treads Improved Treads Leg Aluminum Leg Hover Unit Gravmag System Flight Unit VTOL Module Utility Small Storage Unit Device Improved Heat Sink Storage Small Storage Unit Processor Improved Signal Interpreter Protection Improved Medium Armor Plating Weapon Beamcaster Energy Gun Beamcaster Energy Cannon EM Pulse Cannon Ballistic Gun Enhanced Autogun Ballistic Cannon Light Cannon Special Weapon Mining Laser Build | -11 -10 -10 -9 -8 -7 ------- Run | Scr Mat Min Mat Mat Fac Slots Evolved 6 | . . . 2 2 2 Power 1 | . . . . . 1 Propulsion 2 | . . . 1 1 . Utility 3 | . . . 1 1 1 Weapon . | . . . . . . Parts Attached 70 | 8 3 2 7 35 15 Power 8 | 1 . . 1 2 4 Engine 6 | 1 . . 1 2 2 Core 2 | . . . . . 2 Reactor . | . . . . . . Propulsion 22 | 2 2 . 4 9 5 Treads 16 | . 2 . 4 9 1 Leg 2 | 2 . . . . . Wheel . | . . . . . . Hover 1 | . . . . . 1 Flight 3 | . . . . . 3 Utility 20 | 2 . . 1 14 3 Device 11 | . . . 1 9 1 Storage 5 | 2 . . . 2 1 Processor 2 | . . . . 2 . Hackware . | . . . . . . Protection 2 | . . . . 1 1 Artifact . | . . . . . . Weapon 20 | 3 1 2 1 10 3 Energy Gun 11 | 1 . 1 1 6 2 Energy Cannon 3 | . . . . 3 . Ballistic Gun 4 | 2 . . . 1 1 Ballistic Cannon 1 | . 1 . . . . Launcher . | . . . . . . Special Weapon 1 | . . 1 . . . Impact Weapon . | . . . . . . Slashing Weapon . | . . . . . . Piercing Weapon . | . . . . . . Special Melee Weapon . | . . . . . . Unidentified Prototypes 5 | . . . 1 3 1 Parts Lost 21 | . . 1 . 7 13 Power 2 | . . . . 1 1 Propulsion 6 | . . . . . 6 Utility 5 | . . . . 1 4 Weapon 8 | . . 1 . 5 2 Highest Loss Streak 4 | . . 1 . 4 4 Average Slot Usage (%) 89 | . 100 98 99 97 63 Engine 8 | . 14 14 11 8 2 Core 1 | . . . . . 6 Treads 26 | . 21 28 32 36 6 Flight 1 | . . . . . 5 Device 11 | . . . 11 17 10 Storage 17 | . 28 28 22 12 15 Processor 2 | . . . . 5 . Protection 1 | . . . . . 4 Energy Gun 11 | . 5 10 11 15 6 Ballistic Gun 1 | . 14 . . . 2 Ballistic Cannon 4 | . 8 14 10 . . Naked Turns . | . . . . . . Heaviest Build 69 | 17 18 21 25 54 69 Greatest Support 92 | 20 40 40 69 92 86 Greatest Overweight (x) 22 | . . . 1 . 22 Average Overweight (x) . | . . . . . 4 Largest Inventory Capacity 16 | 8 8 8 8 14 16 Average Capacity 10 | 5 8 8 8 10 15 Most Carried 16 | 4 8 8 8 12 16 Average Carried 9 | 2 6 7 7 9 15 Final Capacity 16 | 8 8 8 8 12 16 Final Carried 16 | 3 8 8 8 12 16 Class Distribution -------------------- 74% | Mutant 25% | Scavenger-Mutant Dominant Class ---------------- Mutant | -10/Materials Mutant | -10/Mines Mutant | -9/Materials Scavenger-Mutant | -8/Materials Mutant | -7/Factory Resources | -11 -10 -10 -9 -8 -7 ----------- Run | Scr Mat Min Mat Mat Fac Matter Collected 1082 | 276 . 131 92 305 278 Remotely . | . . . . . . Salvage Created 2286 | 91 . 191 113 1576 315 Parts 99 | 4 . 10 6 64 15 Haulers Intercepted 3 | . . . . 3 . Recyclers Shooed 5 | . . 1 . 4 . Parts Field Recycled . | . . . . . . Retrieved Matter . | . . . . . . Parts Self-Destructed . | . . . . . . Prevented . | . . . . . . Kills | -11 -10 -10 -9 -8 -7 ------- Run | Scr Mat Min Mat Mat Fac Combat Hostiles Destroyed 29 | . . 3 2 16 8 Guns 25 | . . . 2 15 8 Cannons 3 | . . 3 . . . Classes Destroyed 10 | 1 . 1 2 5 1 Builder 1 | . . . . 1 . Hauler 3 | . . . . 3 . Recycler 10 | 1 . 1 . 8 . Watcher 3 | . . . 1 2 . Swarmer 7 | . . . . 3 4 Grunt 15 | . . 3 1 8 3 Duelist 1 | . . . . 1 . Sentry 4 | . . . 1 3 . Hunter 1 | . . . . 1 . Programmer 1 | . . . . . 1 Best Kill Streak 6 | 1 . 4 1 6 3 Combat Bots Only 3 | . . 3 1 3 3 Max Kills in Single Turn 2 | 1 . 1 1 2 1 Gunslinging 1 | . . . . 1 . Exploded . | . . . . . . Melee . | . . . . . . Uniques/NPCs Destroyed . | . . . . . . Combat | -11 -10 -10 -9 -8 -7 -------- Run | Scr Mat Min Mat Mat Fac Damage Taken 3935 | . . 235 226 1295 2179 Core 969 | . . 44 100 116 709 Absorbed by Shields 21 | . . . . 21 . Core Remaining (%) 83 | 100 . 82 75 78 . Volleys Fired 172 | 2 . 19 8 89 54 Largest 2 | 2 . 1 2 2 2 Hottest 138 | 70 . 35 110 138 118 Shots Fired 277 | 4 . 19 16 153 85 Gun 232 | 4 . . 8 135 85 Cannon 45 | . . 19 8 18 . Launcher . | . . . . . . Special . | . . . . . . Kinetic 51 | 2 . 19 8 . 22 Thermal 195 | 2 . . 8 135 50 Explosive . | . . . . . . Electromagnetic 31 | . . . . 18 13 Robot Hit Streak 12 | 3 . 6 8 12 7 Robot Miss Streak 9 | . . 2 4 3 9 Penetration Max . | . . . . . . Secondary Targets 2 | . . . . 2 . Max Gunslinging Chain 1 | . . . . 1 . Shots Hit Robots 189 | 3 . 13 7 120 46 Core Hits 71 | 2 . 5 4 43 17 Critical Hits . | . . . . . . Critical Kills . | . . . . . . Critical Parts Destroyed . | . . . . . . Melee Attacks . | . . . . . . Impact . | . . . . . . Slashing . | . . . . . . Piercing . | . . . . . . Sneak Attacks . | . . . . . . Combat Hostiles . | . . . . . . Follow-up Attacks . | . . . . . . Damage Inflicted 3296 | 35 . 251 119 2123 768 Guns 2739 | 35 . . 85 1861 758 Cannons 547 | . . 251 34 262 . Explosions . | . . . . . . Melee . | . . . . . . Ramming 10 | . . . . . 10 Kinetic 421 | 23 . 251 34 . 113 Thermal 2511 | 12 . . 85 1861 553 Explosive . | . . . . . . Electromagnetic 354 | . . . . 262 92 Impact . | . . . . . . Slashing . | . . . . . . Piercing . | . . . . . . Highest Corruption 2 | . . . . . 2 Average Corruption 1 | . . . . . 1 Corruption Purged . | . . . . . . Effects 2 | . . . . . 2 Message Errors 1 | . . . . . 1 Heat Flow Errors 1 | . . . . . 1 Overload Shots . | . . . . . . Overflow Damage 49 | . . 14 . 35 . Projectiles 49 | . . 14 . 35 . Explosions . | . . . . . . Melee . | . . . . . . Knockbacks 3 | . . 2 1 . . Impact . | . . . . . . Kinetic 3 | . . 2 1 . . Secondary . | . . . . . . Self-Inflicted Damage 5 | . . . . . 5 Shots . | . . . . . . Rammed 3 | . . . . . 3 Targets Rammed 3 | . . . . . 3 Kicked . | . . . . . . Crushed . | . . . . . . Highest Temperature 796 | 18 . 27 9 287 796 Average Temperature 169 | 10 . 16 5 60 421 Received Heat Transfer 780 | . . 129 72 408 171 Effects 52 | . . . . . 52 Shutdowns 15 | . . . . . 15 Energy Bleed 3 | . . . . . 3 Interference 6 | . . . . . 6 Matter Decay 3 | . . . . . 3 Short Circuit 5 | . . . . . 5 Damage (minor) 6 | . . . . . 6 Damage (major) 13 | . . . . . 13 Damage (core) 1 | . . . . . 1 Siege Activations . | . . . . . . Robots Corrupted 1 | . . . . 1 . Combat Hostiles 1 | . . . . 1 . Parts Fried 1 | . . . . . 1 Impact Corruptions . | . . . . . . Robots Melted . | . . . . . . Combat Hostiles . | . . . . . . Parts Melted 12 | . . . . 6 6 Heat Transferred 4921 | 37 . . 148 3663 1073 Parts Sabotaged . | . . . . . . Parts Stolen . | . . . . . . Parts Stripped . | . . . . . . Power Chain Reactions . | . . . . . . Missiles Intercepted . | . . . . . . Alert | -11 -10 -10 -9 -8 -7 ------- Run | Scr Mat Min Mat Mat Fac Peak Influence 249 | 5 3 80 188 249 225 Initial 60 | . 3 . . 1 60 Average 91 | 2 3 60 31 141 101 Maximum Alert Level 1 | . . . . 1 1 Low Security (%) 83 | 100 100 100 100 78 67 Level 1 16 | . . . . 21 32 Level 2 . | . . . . . . Level 3 . | . . . . . . Level 4 . | . . . . . . Level 5 . | . . . . . . High Security . | . . . . . . Max Security . | . . . . . . Squads Dispatched 7 | . 3 1 1 . 2 Investigation 2 | . 2 . . . . Extermination 1 | . . . . . 1 Reinforcement 3 | . 1 . 1 . 1 Assault 1 | . . 1 . . . Garrison . | . . . . . . Intercept . | . . . . . . Construction Impeded . | . . . . . . Haulers Reinforced . | . . . . . . Stealth | -11 -10 -10 -9 -8 -7 --------- Run | Scr Mat Min Mat Mat Fac Distress Signals 3 | . . . 2 1 . Communications Jammed . | . . . . . . Distress Signals . | . . . . . . Times Spotted 51 | . 1 4 12 20 14 Peak Tracking Total 7 | . 1 4 5 5 7 Tactical Retreats 6 | . . 1 1 2 2 Traps | -11 -10 -10 -9 -8 -7 ------- Run | Scr Mat Min Mat Mat Fac Traps Triggered 2 | . . . . 1 1 Indirectly . | . . . . . . Trap Hack Attempts . | . . . . . . Triggered . | . . . . . . Disarmed . | . . . . . . Reprogrammed . | . . . . . . Reused . | . . . . . . Traps Extracted . | . . . . . . Installed . | . . . . . . Triggered 1 | . . . . 1 . Machines | -11 -10 -10 -9 -8 -7 ---------- Run | Scr Mat Min Mat Mat Fac Machines Disabled 2 | . . . 1 . 1 Max in Single Turn 1 | . . . . . 1 Machines Sabotaged . | . . . . . . Garrisons Compromised . | . . . . . . Overloaded Fab Kills . | . . . . . . Fab Network Shutdowns . | . . . . . . Hacking | -11 -10 -10 -9 -8 -7 --------- Run | Scr Mat Min Mat Mat Fac Machines Accessed 5 | . 2 . 1 2 . Terminals 5 | . 2 . 1 2 . Fabricators . | . . . . . . Repair Stations . | . . . . . . Recycling Units . | . . . . . . Scanalyzers . | . . . . . . Garrison Access . | . . . . . . Total Hacks 18 | . 8 . 3 7 . Successful 9 | . 4 . 2 3 . Failed 9 | . 4 . 1 4 . Catastrophic 1 | . . . . 1 . Database Lockouts . | . . . . . . Manual 1 | . . . 1 . . Terminals 18 | . 8 . 3 7 . Fabricators . | . . . . . . Repair Stations . | . . . . . . Recycling Units . | . . . . . . Scanalyzers . | . . . . . . Garrison Access . | . . . . . . Terminal Hacks 9 | . 4 . 2 3 . Record 3 | . 1 . . 2 . Robot Analysis 2 | . 2 . . . . Alert Level 1 | . . . 1 . . Investigation Status 1 | . 1 . . . . Hauler Manifests 1 | . . . 1 . . Zone Layout 1 | . . . . 1 . Fabricator Hacks . | . . . . . . Repair Station Hacks . | . . . . . . Recycling Unit Hacks . | . . . . . . Scanalyzer . | . . . . . . Garrison Access Hacks . | . . . . . . Unauthorized Hacks . | . . . . . . Terminals . | . . . . . . Fabricators . | . . . . . . Repair Stations . | . . . . . . Recycling Units . | . . . . . . Scanalyzers . | . . . . . . Garrison Access . | . . . . . . Data Cores Recovered 1 | . . . 1 . . Used . | . . . . . . Hacking Detections 5 | . 2 . 1 2 . Full Trace Events 3 | . 2 . . 1 . Feedback Events . | . . . . . . Feedback Blocked . | . . . . . . Robot Schematics Acquired . | . . . . . . Robots Built . | . . . . . . Matter . | . . . . . . Time . | . . . . . . Total Robot Build Rating . | . . . . . . Part Schematics Acquired . | . . . . . . Parts Built . | . . . . . . Matter . | . . . . . . Time . | . . . . . . Total Part Build Rating . | . . . . . . Parts Repaired . | . . . . . . Time . | . . . . . . Parts Recycled . | . . . . . . Recycled Matter . | . . . . . . Retrieved Matter . | . . . . . . Retrieved Components . | . . . . . . Parts Scanalyzed . | . . . . . . Part Schematics Acquired . | . . . . . . Parts Damaged . | . . . . . . Bothacking | -11 -10 -10 -9 -8 -7 ------------ Run | Scr Mat Min Mat Mat Fac Used RIF Installer . | . . . . . . Robots Hacked . | . . . . . . Non-combat . | . . . . . . Combat . | . . . . . . Robot Hacks Applied . | . . . . . . Relay Couplers Released . | . . . . . . Robots Rewired . | . . . . . . Allies Hacked . | . . . . . . Hacks Repelled . | . . . . . . Allies | -11 -10 -10 -9 -8 -7 -------- Run | Scr Mat Min Mat Mat Fac Total Allies 3 | . . 3 . . . Largest Group 2 | . . 2 2 . . Highest-Rated Group 43 | . . 43 43 . . Highest-Rated Ally 31 | . . 31 31 . . Total Orders . | . . . . . . Ally Attacks 25 | . . 8 17 . . Total Damage 581 | . . 62 519 . . Kills 5 | . . 1 4 . . Allies Corrupted . | . . . . . . Allies Melted . | . . . . . . Intel | -11 -10 -10 -9 -8 -7 ------- Run | Scr Mat Min Mat Mat Fac Robot Analysis Total 2 | . 2 . . . . Derelict Logs Recovered 1 | . . 1 . . . Drone Launches . | . . . . . . Drone Recoveries . | . . . . . . Exploration | -11 -10 -10 -9 -8 -7 ------------- Run | Scr Mat Min Mat Mat Fac Turns Passed 2900 | 58 106 417 537 1065 717 Spaces Moved 1153 | 40 62 220 277 388 166 Core 33 | 18 . . . . 15 Treads 965 | . 48 220 277 388 32 Legs 36 | 22 14 . . . . Wheels . | . . . . . . Hover 61 | . . . . . 61 Flight 58 | . . . . . 58 Fastest Speed 50 | 50 120 160 160 160 160 Average Speed 180 | 88 150 160 160 160 324 Slowest Speed 1150 | 120 160 160 180 160 1150 Overloaded Moves . | . . . . . . Propulsion Burnouts . | . . . . . . Robots Hopped . | . . . . . . Cave-ins Triggered . | . . . . . . Exploration Rate (%) 23 | 3 14 54 29 34 6 Regions Visited 5 Branch Regions 1 Pre-discovered Areas . | . . . . . . Known Exits Taken . | . . . . . . Unknown Exits Taken 5 | 1 1 1 1 1 . Scrap Searched . | . . . . . . Spaces Dug . | . . . . . . Terrain Destroyed . | . . . . . . Melee . | . . . . . . Projectile . | . . . . . . AOE . | . . . . . . Terrain Rammed . | . . . . . . Walls Destroyed . | . . . . . . Machines Disabled . | . . . . . . Actions | -11 -10 -10 -9 -8 -7 --------- Run | Scr Mat Min Mat Mat Fac Total 1705 | 57 76 266 362 682 262 Wait 176 | . . 22 35 111 8 Move 1148 | 39 61 219 276 387 166 Hop . | . . . . . . Pick Up 79 | 8 8 2 17 33 11 Fast Attach 11 | 2 . 1 4 3 1 Attach 25 | 5 1 . 2 10 7 Detach 4 | . 1 . . 1 2 Swap 34 | 1 2 1 1 22 7 Drop 53 | . 3 2 19 26 3 Fire 172 | 2 . 19 8 89 54 Melee . | . . . . . . Ram 3 | . . . . . 3 Kick . | . . . . . . Crush . | . . . . . . Escape Stasis . | . . . . . . Rewire . | . . . . . . Trap . | . . . . . . Miscellaneous . | . . . . . . Route ------- -11/Scrapyard -10/Materials -10/Mines -9/Materials -8/Materials -7/Factory History --------- Turn | Location | Event 5 | -11/Scrapyard | Discovered new exit (range 16) 59 | -11/Scrapyard | Entered Materials 135 | -10/Materials | Discovered new exit (range 10) 165 | -10/Materials | Entered Mines 166 | -10/Mines | Met a Derelict testing a Signal Generator 323 | -10/Mines | Build established: Mutant 376 | -10/Mines | Discovered new exit (range 7) 522 | -10/Mines | Learned Materials trap positions 582 | -10/Mines | Entered Materials 582 | -9/Materials | Accompanied by 2 allies 582 | -9/Materials | Evolved 2 slots: Propulsion x1, Utility x1 583 | -9/Materials | Loaded intel: 12 trap records 587 | -9/Materials | Led the pair of lost Derelicts to an unsafe place 1073 | -9/Materials | Discovered new exit (range 16) 1119 | -9/Materials | Entered another Materials area 1119 | -8/Materials | Evolved 2 slots: Propulsion x1, Utility x1 1712 | -8/Materials | Lost 4 parts (1u3w) 1984 | -8/Materials | Build established: Scavenger-Mutant 2093 | -8/Materials | Discovered new exit (range 16) 2184 | -8/Materials | Entered Factory 2184 | -7/Factory | Evolved 2 slots: Power x1, Utility x1 2382 | -7/Factory | Lost 4 parts (3n1u) 2454 | -7/Factory | Build established: Mutant 2595 | -7/Factory | Lost 3 parts (1n1u1w) 2801 | -7/Factory | Core integrity fell below 50% 2866 | -7/Factory | Core integrity fell below 20% 2870 | -7/Factory | Lost 3 parts (1n1u1w) 2901 | -7/Factory | Destroyed by G-47 Trooper with Particle Gun Last Messages --------------- 02839_ Penetrated by Slug. 02839_ Imp. Heat Sink destroyed. 02840_ K-01 Serf collects debris. 02850_ Slug penetrates Wall. 02855_ K-01 Serf cleans the Matter Pump. 02856_ Penetrated by Slug. 02856_ K-01 Serf destroyed. 02861_ K-01 Serf cleans the Matter Pump. 02865_ Acquired 29 matter. 02865_ K-01 Serf cleans the Subcomponent Replicator. 02868_ K-01 Serf cleans the Matter Pump. 02870_ K-01 Serf collects debris. 02871_ Penetrated by Slug. 02871_ K-01 Serf collects debris. 02874_ K-01 Serf cleans the Subcomponent Replicator. 02874_ K-01 Serf collects debris. 02879_ Slammed into K-01 Serf. 02888_ System corrupted: Heat flow error (+132). 02892_ R-06 Scavenger collects Wheel. 02896_ R-06 Scavenger collects Lgt. Ion Engine. Map ----- +----------------------------------------------------+ | ?????????????????????????????????????????????????? | | ?????????????????????????????????????????????????? | | ?????????????????????????????????????????????????? | | ?????????????????????????????????????????????????? | | ?????????????????????????????????????????????????? | | ?????????????????????????????????????????????????? | | ???????????????????????????????????????????????? | | ???????????????????????????????????????????????? | | ???????????????????????????????????????????????? | | ?????????????????????????????????? ????????????# | | ?????????????????????????????????+ ? ????????# | | ?????????????????????????????????# ????????# | | ?????????????????????????????????# ????????# | | ?????????????????????????????????# ????????# | | ?????????????????????????????????# #???????# | | ?????????????????????????????????# ######### | | ??????????????????###??#########?# | | ??????????????????# ? #?# | | ??????????????????# #?# """"" ]!! """ | | ??????????????????# """ """ #?# ""T"" ]!! """ | | ??????????????????# """ """ #?# ]!! """ | | ??????????????????# """ """ #?# | | ??????????????????# "" "" #?# %"" """ """ | | ??????????????????# "" "" #?# %%" """ """ | | ??????????????????# ### %%% """ """ | | ??????????????????# @ gk a % | | ????????????? + * r ### %%%%""" | | ????????????? # #?# !!! %%"%%""" | | ??????????????????# #?# !!! ""% %"" | | ??????????????????##############?# !! | | ??????????????????????????? """ """ """ | | ??????????????????????????? ^ """ """ """ | | ???????????????????????????? ^^ """ """ """ | | ??????????????????????????? | | ??????????????????????????? | | ???????????????????????????#########+############# | | ?????????????????????????????????????????????????? | | ?????????????????????????????????????????????????? | | ?????????????????????????????????????????????????? | | ?????????????????????????????????????????????????? | | ?????????????????????????????????????????????????? | | ?????????????????????????????????????????????????? | | ?????????????????????????????????????????????????? | | ?????????????????????????????????????????????????? | | ?????????????????????????????????????????????????? | | ?????????????????????????????????????????????????? | | ?????????????????????????????????????????????????? | | ?????????????????????????????????????????????????? | | ?????????????????????????????????????????????????? | | ?????????????????????????????????????????????????? | +----------------------------------------------------+ Best States ------------- Heat Dissipation 48 Energy Generation 26 Energy Capacity 480 Matter Stores 300 Matter Capacity 300 Sight Range 16 Robot Scan Range 13 Terrain Scan Density 10 Jamming Range 8 Armor Coverage 375 Evasion (%) 50 Recoil Reduction 4 Item Schematics ----------------- None Robot Schematics ------------------ None Fabricated ------------ Nothing Alien Tech Used ----------------- None Achievements -------------- No Signal Power Corrupts Challenges ------------ None Game ------ Seed StormGaussDevice Manual? 0 Play Time 00:55:08 Cumulative 7.3 hours Start 2021.05.18 @ 10:31:03 End 2021.05.18 @ 11:27:40 Sessions 1 Manual Loads 0 Difficulty Rogue Special Mode None Game No. 7 Rogue 7 Adventurer 0 Explorer 0 Win Type - Total 0 Types 0/0/0/0/0/0/0/0/0 Lore% 13 Gallery% 11 Achievement% 10 Wizard Run 0 Options --------- ASCII 0 Keyboard 0 Movement Mouse Keybinds 0 Fullscreen 1 Font 18/CogNarrow Map View 76x50 Tactical HUD 1 Map Filters NONE Filters NONE Steam 1 RUN: 3fa0b799-097e-4d99-b295-567ab1342b6e